bitfinex/quotes_BTCUSD_20251224
["timestamp","ask_amount","ask_price","bid_price","bid_amount"]
[1766591486456,0.01156,87012.0,87003.0,0.06896303]
[1766591486844,0.01156,87012.0,87003.0,7.9e-07]
[1766591487586,0.01149279,87011.0,87003.0,7.9e-07]
[1766591487788,0.01149319,87008.0,87003.0,7.9e-07]
[1766591488030,0.06895933,87008.0,87003.0,7.9e-07]
[1766591488263,0.01149319,87008.0,87003.0,7.9e-07]
[1766591488469,0.06895886,87009.0,87003.0,7.9e-07]
[1766591488675,0.01149279,87011.0,87003.0,7.9e-07]
[1766591488916,0.01149187,87018.0,87003.0,0.01149464]
[1766591489128,0.24132459,87020.0,87007.0,0.05746614]
[1766591489129,0.00011,87013.0,87007.0,0.05746614]
[1766591489575,0.00011,87013.0,87009.0,0.01149306]
[1766591489780,0.01167,87013.0,87009.0,0.01149306]
[1766591490230,0.00035453,87023.0,87019.0,0.01149174]
[1766591490446,0.00035453,87023.0,87018.0,0.01149187]
[1766591490661,0.00035453,87023.0,87020.0,0.01149161]
[1766591491098,0.00035453,87023.0,87020.0,0.06894948]
[1766591491306,0.00035453,87023.0,87018.0,0.01149187]
[1766591491307,0.00035453,87023.0,87019.0,0.01149174]
[1766591491489,0.00035453,87023.0,87018.0,0.01149187]
[1766591491698,0.00035453,87023.0,87019.0,0.01149174]
[1766591492048,0.01156,87025.0,87023.0,0.000354]
[1766591492049,1e-08,87025.0,87023.0,0.000354]
[1766591492255,0.00011,87027.0,87025.0,8.772e-05]
[1766591492678,0.00011,87027.0,87024.0,0.06894599]
[1766591492877,0.00011,87027.0,87024.0,0.01149108]
[1766591493083,0.00994943,87030.0,87026.0,0.01149081]
[1766591493474,0.01148949,87036.0,87027.0,0.01149068]
[1766591493475,0.01156,87036.0,87027.0,0.01149068]
[1766591493798,0.02304949,87036.0,87026.0,0.01149081]
[1766591494377,0.01156,87036.0,87026.0,0.06894477]
[1766591494579,0.01156,87036.0,87027.0,0.01149068]
[1766591494776,0.01156,87036.0,87026.0,0.01149081]
[1766591494980,0.01156,87036.0,87026.0,0.13205081]
[1766591495201,0.01156,87036.0,87026.0,0.18950466]
[1766591495566,0.02304949,87036.0,87026.0,0.12625946]
[1766591495720,0.02304949,87036.0,87027.0,0.01149068]
[1766591496372,0.01156,87036.0,87026.0,0.08029642]
[1766591496909,0.01156,87036.0,87027.0,0.01149068]
[1766591497261,0.01156,87036.0,87028.0,0.01149055]
[1766591497464,0.01156,87036.0,87029.0,0.06894238]
[1766591497692,0.01156,87036.0,87028.0,0.06894321]
[1766591497882,0.02304949,87036.0,87026.0,0.08029642]
[1766591498040,0.01156,87036.0,87026.0,0.13775039]
[1766591498244,0.01148963,87035.0,87026.0,0.08029642]
[1766591498468,0.08049707,87036.0,87026.0,0.08029642]
[1766591498826,0.02304949,87036.0,87026.0,0.06880561]
[1766591499017,0.000106,87026.0,87023.0,0.01156]
[1766591499423,0.01149002,87032.0,87023.0,0.01156]
[1766591500344,0.000106,87023.0,87018.0,0.02305187]
[1766591500557,0.000106,87023.0,87017.0,2e-06]
[1766591500754,0.000106,87023.0,87017.0,0.01191594]
[1766591500975,0.00011,87028.0,87017.0,0.02340794]
[1766591501182,0.00011,87028.0,87018.0,0.01149187]
[1766591501401,0.00011,87028.0,87012.0,0.22985096]
[1766591501402,0.22984014,87017.0,86988.0,0.1485]
[1766591501601,0.06895293,87016.0,87011.0,0.00033758]
[1766591501834,0.06895293,87016.0,87004.0,0.17007806]
[1766591501835,0.01149227,87015.0,87004.0,0.12410372]
[1766591502115,0.01149253,87013.0,87009.0,0.01156]
[1766591502356,0.0114924,87014.0,87009.0,0.01156]
[1766591502549,0.01149227,87015.0,87009.0,0.011454]
[1766591502768,0.01149213,87016.0,87009.0,0.011454]
[1766591503166,0.01149227,87015.0,87009.0,0.011454]
[1766591503321,0.06895283,87016.0,87009.0,0.011454]
[1766591503550,0.01149227,87015.0,87009.0,0.011454]
[1766591504129,0.01184647,87017.0,87009.0,0.011454]
[1766591504352,0.00035447,87017.0,87009.0,0.011454]
[1766591504556,0.01149266,87012.0,87001.0,0.01156]
[1766591504816,0.0689569,87011.0,87001.0,0.01156]
[1766591505039,0.0689569,87011.0,86997.0,0.01149464]
[1766591505040,0.01149346,87006.0,86993.0,0.05758524]
[1766591505207,0.01156,87005.0,86993.0,0.00011]
[1766591505405,0.01156,87005.0,86998.0,0.01149451]
[1766591505608,0.01156,87005.0,86997.0,0.05747195]
[1766591505808,0.01156,87005.0,87000.0,0.01149425]
[1766591506195,0.01156,87005.0,86998.0,0.06896646]
[1766591506416,0.01156,87005.0,86997.0,0.01149464]
[1766591506600,0.01149398,87002.0,86996.0,4.31e-06]
[1766591506801,0.06896762,86999.0,86996.0,4.31e-06]
[1766591507007,0.01149385,87003.0,86993.0,4.31e-06]
[1766591507270,0.01149412,87001.0,86993.0,4.31e-06]
[1766591507613,0.06896392,87002.0,86993.0,4.31e-06]
[1766591508380,0.01149425,87000.0,86993.0,4.31e-06]
[1766591508787,0.01149319,87008.0,86993.0,0.01149948]
[1766591508995,0.06896331,87003.0,86993.0,0.01149948]
[1766591509198,0.01149385,87003.0,86993.0,0.01149948]
[1766591509399,0.05746923,87004.0,86994.0,0.01149504]
[1766591509400,0.06896295,87004.0,86994.0,0.01149504]
[1766591509788,0.06896295,87004.0,86993.0,0.05174818]
[1766591510201,0.01149372,87004.0,86995.0,0.01149491]
[1766591510622,0.05746798,87005.0,86994.0,0.0689702]
[1766591510798,0.01156,87005.0,86995.0,0.01149491]
[1766591510997,0.05746862,87004.0,86992.0,0.05747615]
[1766591511224,0.08052163,87005.0,86994.0,0.06896999]
[1766591511424,0.02305359,87005.0,86986.0,0.04596]
[1766591511629,0.0574715,87000.0,86989.0,0.0114957]
[1766591511829,0.02305359,87005.0,86986.0,0.04596]
[1766591511830,0.01149438,86999.0,86986.0,0.04596]
[1766591512031,0.01149451,86998.0,86989.0,0.0114957]
[1766591512372,0.01149451,86998.0,86988.0,0.01149583]
[1766591512582,0.01149438,86999.0,86987.0,0.11261]
[1766591512787,0.00055,86990.0,86982.0,0.01149663]
[1766591513194,0.05748012,86987.0,86980.0,0.11261]
[1766591513401,0.01149544,86991.0,86980.0,0.18159129]
[1766591513606,0.01156,86993.0,86983.0,0.01149649]
[1766591513816,0.011011,86993.0,86986.0,0.06897661]
[1766591514020,0.011011,86993.0,86987.0,0.01149597]
[1766591514430,0.011011,86993.0,86986.0,0.06897661]
[1766591514586,0.011011,86993.0,86986.0,0.0114961]
[1766591514808,0.011011,86993.0,86985.0,0.06897674]
[1766591515007,0.011011,86993.0,86984.0,0.06897803]
[1766591515237,0.02250617,86993.0,86983.0,0.00010628]
[1766591515439,0.01149597,86987.0,86983.0,0.00010628]
[1766591515649,0.06897635,86987.0,86983.0,0.00010628]
[1766591515853,0.0689738,86991.0,86983.0,0.00010628]
[1766591516191,0.06897199,86992.0,86983.0,0.00010628]
[1766591516375,0.07998237,86993.0,86983.0,0.00010628]
[1766591516592,0.0114953,86992.0,86983.0,0.00010628]
[1766591516752,0.01149544,86991.0,86983.0,0.00010628]
[1766591516952,0.011011,86993.0,86985.0,0.01149623]
[1766591517132,0.011011,86993.0,86987.0,0.01149597]
[1766591517330,0.01156,86992.0,86987.0,0.01149597]
[1766591517559,0.01156,86991.0,86987.0,0.0689757]
[1766591517764,0.01156,86991.0,86988.0,0.01149583]
[1766591518543,0.01156,86991.0,86977.0,0.02305729]
[1766591518744,0.01156,86991.0,86983.0,0.0575887]
[1766591518965,0.01156,86991.0,86983.0,0.00010628]
[1766591519188,0.01156,86991.0,86983.0,0.01160277]
[1766591519349,0.01156,86991.0,86983.0,0.06908468]
[1766591519561,0.01156,86991.0,86983.0,0.01160277]
[1766591519786,0.000549,86983.0,86973.0,0.12192]
[1766591519984,0.0114961,86986.0,86977.0,0.01166639]
[1766591520192,0.0114957,86989.0,86978.0,0.05748566]
[1766591520417,0.01149557,86990.0,86978.0,0.19090282]
[1766591520580,0.01149557,86990.0,86979.0,0.0574846]
[1766591520788,0.01149583,86988.0,86978.0,0.19090282]
[1766591521875,0.01156,86991.0,86981.0,0.05748352]
[1766591522106,0.01156,86991.0,86982.0,0.01149663]
[1766591522302,0.01156,86991.0,86983.0,0.06897897]
[1766591522572,0.01156,86991.0,86983.0,0.06897891]
[1766591522749,0.01156,86990.0,86985.0,0.01149623]
[1766591522901,0.01156,86990.0,86984.0,0.06897806]
[1766591523102,0.01156,86990.0,86982.0,0.13341663]
[1766591523329,0.01156,86990.0,86986.0,0.06897624]
[1766591523533,0.01156,86991.0,86990.0,0.12192]
[1766591523853,0.01156,86995.0,86990.0,0.12192]
[1766591524265,0.01149597,86987.0,86981.0,0.12192]
[1766591524473,0.0114953,86992.0,86981.0,0.12192]
[1766591525081,0.06897243,86992.0,86981.0,0.12192]
[1766591525286,0.01149544,86991.0,86981.0,0.13341676]
[1766591526044,0.01149557,86990.0,86981.0,0.12192]
[1766591526899,0.01149583,86988.0,86983.0,0.011011]
[1766591527108,0.01149623,86985.0,86977.0,0.00010639]
[1766591527308,0.01156,86988.0,86982.0,0.05748286]
[1766591527531,0.01156,86988.0,86985.0,0.000549]
[1766591527738,0.01156,86988.0,86982.0,0.01149663]
[1766591527989,0.01149478,86996.0,86985.0,0.01149623]
[1766591528166,0.01156,86995.0,86986.0,0.0114961]
[1766591528374,0.01156,86994.0,86987.0,0.01149597]
[1766591528571,0.01149451,86998.0,86987.0,0.01149597]
[1766591528780,0.01149478,86996.0,86985.0,0.01149623]
[1766591528983,0.01149504,86994.0,86985.0,0.01149623]
[1766591529189,0.01149504,86994.0,86983.0,0.01149649]
[1766591529389,0.01149504,86994.0,86981.0,0.12192]
[1766591529585,0.01149504,86994.0,86984.0,0.01149636]
[1766591529790,0.06897035,86994.0,86984.0,0.01149636]
[1766591529967,0.01156,86997.0,86987.0,0.01149597]
[1766591530171,0.01156,86996.0,86989.0,0.06897364]
[1766591530535,0.01149451,86998.0,86987.0,0.06897533]
[1766591530752,0.01149227,87015.0,86996.0,0.000549]
[1766591530956,0.01156,87016.0,86983.0,0.046]
[1766591530957,0.036732,87011.0,86994.0,0.01156]
[1766591531157,0.036732,87011.0,86989.0,0.0114957]
[1766591531158,0.01149398,87002.0,86991.0,0.01149544]
[1766591531360,0.01156,87002.0,86992.0,0.05747613]
[1766591531518,0.01156,87002.0,86996.0,0.01149478]
[1766591531716,0.01156,87002.0,86991.0,0.01149544]
[1766591531917,0.00055,86991.0,86988.0,0.01156]
[1766591532243,0.00055,86991.0,86988.0,0.02305583]
[1766591532453,0.01149464,86997.0,86988.0,0.01156]
[1766591532798,0.01149451,86998.0,86988.0,0.01156]
[1766591532799,0.06896719,86998.0,86988.0,0.01156]
[1766591532982,0.01149464,86997.0,86986.0,0.06897608]
[1766591533198,0.01149412,87001.0,86985.0,0.01149623]
[1766591533199,0.01156,86996.0,86990.0,0.01149557]
[1766591533435,0.01156,86996.0,86992.0,0.06897163]
[1766591533653,0.01156,86996.0,86993.0,0.06897095]
[1766591533821,0.01149372,87004.0,86994.0,0.13341504]
[1766591533977,0.01156,87003.0,86994.0,0.13341504]
[1766591534439,0.03102268,87016.0,87003.0,0.000549]
[1766591534654,0.01156,87010.0,87003.0,0.01204285]
[1766591534878,0.00011,87015.0,87006.0,0.01149346]
[1766591535060,0.01156,87018.0,87009.0,0.12192]
[1766591535392,0.01156,87019.0,87016.0,0.01149213]
[1766591536029,0.00815336,87019.0,87016.0,0.01149213]
[1766591536948,0.00815336,87019.0,87009.0,0.13341306]
[1766591537083,0.00815336,87019.0,87011.0,0.01149279]
[1766591537284,0.0196451,87019.0,87010.0,0.12192]
[1766591537547,0.00815336,87019.0,87010.0,0.13341293]
[1766591537754,0.00815336,87019.0,87011.0,0.13341279]
[1766591537907,0.01191453,87019.0,87012.0,0.01149266]
[1766591538107,0.01191453,87019.0,87013.0,0.06895495]
[1766591538471,0.01191453,87019.0,87016.0,0.01149213]
[1766591538657,0.01191453,87019.0,87015.0,0.0689535]
[1766591538867,0.01191453,87019.0,87015.0,0.01149227]
[1766591539511,0.01191453,87019.0,87013.0,0.06895515]
[1766591539667,0.01191453,87019.0,87014.0,0.0114924]
[1766591540048,0.01191453,87019.0,87011.0,0.13341279]
[1766591540299,0.01191453,87019.0,87012.0,0.01149266]
[1766591540496,0.01191453,87019.0,87011.0,0.19087678]
[1766591540740,0.01191453,87019.0,87012.0,0.01149266]
[1766591541389,0.01191453,87019.0,87011.0,0.19087678]
[1766591541817,0.01191453,87019.0,87006.0,0.24136129]
[1766591541818,0.00055,87011.0,87005.0,0.02305359]
[1766591542023,0.01149319,87008.0,87001.0,0.01156]
[1766591542225,0.01156,87010.0,86999.0,0.01149438]
[1766591542438,0.01149332,87007.0,86997.0,0.08052729]
[1766591542648,0.01156,87010.0,86999.0,0.05747141]
[1766591542871,0.01149213,87016.0,86998.0,0.12192]
[1766591543070,0.01156,87015.0,87004.0,0.01149372]
[1766591543301,0.01156,87015.0,87006.0,0.01149346]
[1766591543510,0.01156,87015.0,87005.0,0.01149359]
[1766591543738,0.01156,87015.0,87009.0,0.01149306]
[1766591543920,0.046,87029.0,87020.0,0.01149161]
[1766591544138,0.00018333,87028.0,87017.0,0.011492]
[1766591544339,0.02305068,87027.0,87017.0,0.011492]
[1766591544529,0.01149095,87025.0,87016.0,0.01149213]
[1766591544736,0.01149081,87026.0,87016.0,0.01149213]
[1766591545153,0.01149095,87025.0,87015.0,0.0689536]
[1766591545283,0.01149108,87024.0,87014.0,0.05746178]
[1766591545480,0.00018333,87028.0,87016.0,0.13341213]
[1766591545726,0.01156,87027.0,87024.0,0.000549]
[1766591545970,0.01156,87027.0,87015.0,0.01156]
[1766591545971,0.08050426,87027.0,87015.0,0.19094012]
[1766591546149,0.01149095,87025.0,87011.0,0.02305279]
[1766591546355,0.06894629,87025.0,87014.0,0.0114924]
[1766591546560,0.01149108,87024.0,87012.0,0.0574621]
[1766591546725,0.06894866,87022.0,87011.0,0.02305279]
[1766591546928,0.01156,87027.0,87015.0,0.01149227]
[1766591547130,0.06901347,87027.0,87016.0,0.01149213]
[1766591547337,0.08050415,87027.0,87017.0,0.011492]
[1766591547504,0.01156,87027.0,87017.0,0.011492]
[1766591547705,0.01149081,87026.0,87016.0,0.06895281]
[1766591547908,0.01149081,87026.0,87017.0,0.011492]
[1766591548354,0.02305095,87025.0,87016.0,0.01149213]
[1766591548557,0.01156,87025.0,87018.0,0.01149187]
[1766591548776,0.01156,87025.0,87019.0,0.13550174]
[1766591548984,0.01156,87024.0,87020.0,0.01149161]
[1766591549183,0.01156,87023.0,87019.0,0.19295983]
[1766591549395,0.01156,87023.0,87019.0,0.19303316]
[1766591549823,0.01156,87023.0,87019.0,0.12408333]
[1766591550030,0.01156,87028.0,87020.0,0.12401]
[1766591550446,0.01156,87027.0,87020.0,0.12401]
[1766591550661,0.01156,87027.0,87020.0,0.13550161]
[1766591550826,0.01156,87027.0,87020.0,0.12401]
[1766591551310,0.05744881,87034.0,87020.0,0.19295947]
[1766591551518,0.01148712,87054.0,87033.0,0.01148989]
[1766591551711,0.036732,87043.0,87033.0,0.01148989]
[1766591551939,0.036732,87043.0,87035.0,0.01148963]
[1766591552149,0.036732,87043.0,87034.0,0.01148976]
[1766591552582,0.036732,87043.0,87035.0,0.05744797]
[1766591552779,0.01156,87042.0,87035.0,0.01148963]
[1766591552981,0.036732,87043.0,87034.0,0.01148976]
[1766591553211,0.036732,87043.0,87035.0,0.01148963]
[1766591553212,0.01156,87041.0,87035.0,0.01148963]
[1766591553386,0.01156,87041.0,87033.0,0.06893929]
[1766591553602,0.01156,87041.0,87034.0,0.06893855]
[1766591553803,0.01156,87040.0,87036.0,0.06893697]
[1766591554005,0.0689289,87047.0,87035.0,0.12401]
[1766591554006,0.01156,87039.0,87035.0,0.13549963]
[1766591554211,0.01156,87039.0,87035.0,0.12401]
[1766591554416,0.01156,87039.0,87028.0,0.01149055]
[1766591554417,0.01156,87039.0,87031.0,0.01149015]
[1766591554619,0.01156,87039.0,87030.0,0.01149029]
[1766591554824,0.01156,87039.0,87033.0,0.05744931]
[1766591555030,0.01156,87039.0,87034.0,0.06893848]
[1766591555231,0.01156,87039.0,87031.0,0.01149015]
[1766591555463,0.01156,87039.0,87033.0,0.05744931]
[1766591555814,0.01156,87039.0,87032.0,0.01149002]
[1766591555979,0.01156,87039.0,87036.0,0.06893697]
[1766591556180,0.01156,87040.0,87036.0,0.01148949]
[1766591556395,0.01156,87040.0,87037.0,0.01148936]
[1766591556626,0.01156,87040.0,87036.0,0.01148949]
[1766591556833,0.01156,87040.0,87027.0,0.35382253]
[1766591556834,0.01148633,87060.0,87032.0,0.01156]
[1766591557033,0.70702953,87084.0,87030.0,0.39732476]
[1766591557034,0.036732,87056.0,87041.0,0.12401]
[1766591557260,0.036732,87056.0,87042.0,0.0114887]
[1766591557458,0.036732,87056.0,87033.0,0.01156]
[1766591557459,0.01148738,87052.0,87037.0,0.06893598]
[1766591557673,0.000549,87042.0,87039.0,0.0114891]
[1766591557904,0.000549,87042.0,87035.0,0.22979261]
[1766591558103,0.01156,87051.0,87033.0,0.01156]
[1766591558104,0.01156,87051.0,87039.0,0.0114891]
[1766591558282,0.02304751,87051.0,87039.0,0.05744546]
[1766591558517,0.01148765,87050.0,87035.0,0.05744787]
[1766591558660,0.01148804,87047.0,87035.0,0.01148963]
[1766591558892,0.06892906,87046.0,87035.0,0.01148963]
[1766591559096,0.01148804,87047.0,87036.0,0.01148949]
[1766591559294,0.01148817,87046.0,87036.0,0.01148949]
[1766591559557,0.01148791,87048.0,87038.0,0.01148923]
[1766591559755,0.06892676,87049.0,87038.0,0.01148923]
[1766591559993,0.06892299,87054.0,87044.0,0.12401]
[1766591560193,0.02304725,87053.0,87044.0,0.12401]
[1766591560401,0.01156,87053.0,87044.0,0.12401]
[1766591560600,0.01148738,87052.0,87044.0,0.12401]
[1766591560800,0.01148751,87051.0,87044.0,0.12401]
[1766591561014,0.02304738,87052.0,87044.0,0.12401]
[1766591561420,0.01156,87051.0,87044.0,0.12401]
[1766591561796,0.01148738,87052.0,87044.0,0.12401]
[1766591561958,0.01156,87051.0,87044.0,0.12401]
[1766591562601,0.02304751,87051.0,87044.0,0.12401]
[1766591562811,0.01156,87051.0,87044.0,0.12401]
[1766591563132,0.01156,87051.0,87048.0,0.01148791]
[1766591563331,0.01156,87051.0,87044.0,0.13324844]
[1766591563533,0.01156,87053.0,87044.0,0.12176]
[1766591563707,0.01156,87053.0,87045.0,0.01148831]
[1766591563948,0.01156,87053.0,87044.0,0.12176]
[1766591564128,0.01156,87053.0,87046.0,0.12176]
[1766591564129,0.05743766,87051.0,87046.0,0.12176]
[1766591564349,0.00055,87046.0,87038.0,0.01156]
[1766591564496,0.00055,87046.0,87039.0,0.0114891]
[1766591564723,0.01148751,87051.0,87041.0,0.01148883]
[1766591564934,0.06892443,87052.0,87040.0,0.0689333]
[1766591565200,0.06892443,87052.0,87041.0,0.06893285]
[1766591565766,0.06892443,87052.0,87042.0,0.0114887]
[1766591566169,0.01148751,87051.0,87041.0,0.06893285]
[1766591566407,0.26950019,87061.0,87052.0,0.12176]
[1766591566592,0.01156,87060.0,87052.0,0.13324738]
[1766591566805,0.01156,87060.0,87053.0,0.01148725]
[1766591567125,0.01156,87060.0,87052.0,0.12186635]
[1766591567301,0.01156,87060.0,87040.0,0.39679721]
[1766591567302,0.00055,87052.0,87040.0,0.39679721]
[1766591567640,0.01148804,87047.0,87038.0,0.01156]
[1766591567793,0.05744168,87045.0,87038.0,0.01156]
[1766591568131,0.01148817,87046.0,87038.0,0.01156]
[1766591568329,0.01148831,87045.0,87038.0,0.01156]
[1766591568547,0.01148817,87046.0,87038.0,0.01156]
[1766591568961,0.01148804,87047.0,87038.0,0.01156]
[1766591569125,0.01156,87053.0,87048.0,0.12176]
[1766591570161,0.01156,87057.0,87048.0,0.12176]
[1766591570568,0.01148672,87057.0,87048.0,0.12176]
[1766591571004,0.06892207,87055.0,87048.0,0.12176]
[1766591571209,0.01148751,87051.0,87048.0,0.12176]
[1766591571411,0.01148751,87051.0,87044.0,0.01156]
[1766591571412,0.01148817,87046.0,87044.0,0.01156]
[1766591571620,0.01148804,87047.0,87044.0,0.01156]
[1766591571818,0.06892857,87047.0,87044.0,0.01156]
[1766591572040,0.05744138,87046.0,87044.0,0.01156]
[1766591572461,0.05744138,87046.0,87044.0,0.01101]
[1766591572838,0.01148844,87044.0,87039.0,0.01156]
[1766591573365,0.06892997,87045.0,87039.0,0.01156]
[1766591573570,0.01148857,87043.0,87039.0,0.01156]
[1766591573726,0.06892997,87045.0,87039.0,0.01156]
[1766591573922,0.01148844,87044.0,87039.0,0.01156]
[1766591574393,0.06892997,87045.0,87039.0,0.01156]
[1766591574596,0.02304738,87052.0,87039.0,0.01156]
[1766591574814,0.00114899,87051.0,87039.0,0.01156]
[1766591575147,0.01148804,87047.0,87039.0,0.01156]
[1766591575727,0.01148831,87045.0,87039.0,0.01156]
[1766591575927,0.01148817,87046.0,87039.0,0.01156]
[1766591576132,0.06892841,87047.0,87039.0,0.01156]
[1766591576336,0.06892763,87048.0,87039.0,0.01156]
[1766591576533,0.01148817,87046.0,87039.0,0.01156]
[1766591576745,0.01148804,87047.0,87039.0,0.01156]
[1766591577144,0.01148712,87054.0,87042.0,0.0114887]
[1766591577358,0.01148712,87054.0,87039.0,0.0230491]
[1766591577359,0.01148725,87053.0,87041.0,0.01148883]
[1766591577562,0.0689248,87053.0,87041.0,0.01148883]
[1766591578004,0.0689248,87053.0,87041.0,0.01129176]
[1766591578200,0.0689248,87053.0,87042.0,0.0114887]
[1766591578201,0.00011,87051.0,87042.0,0.0114887]
[1766591578399,0.00011,87051.0,87041.0,0.06873543]
[1766591578616,0.01148765,87050.0,87039.0,0.08049458]
[1766591578778,0.0689263,87050.0,87039.0,0.01156]
[1766591579117,0.0689263,87050.0,87039.0,0.0230491]
[1766591579684,0.01148778,87049.0,87039.0,0.01156]
[1766591579884,0.00114899,87050.0,87039.0,0.01156]
[1766591580087,0.00114899,87050.0,87040.0,0.01148897]
[1766591580335,0.01159751,87051.0,87039.0,0.06900494]
[1766591580468,0.00011,87051.0,87040.0,0.06893365]
[1766591580673,0.06892643,87050.0,87039.0,0.01156]
[1766591581077,0.057439,87049.0,87039.0,0.01156]
[1766591581277,0.05744005,87048.0,87039.0,0.01156]
[1766591581483,0.00011,87051.0,87040.0,0.01148897]
[1766591581711,0.00011,87051.0,87041.0,0.01148883]
[1766591581921,0.00011,87051.0,87044.0,0.01148844]
[1766591582143,0.02480971,87061.0,87051.0,0.00011]
[1766591582398,0.02304633,87060.0,87049.0,0.13159778]
[1766591582641,0.01148646,87059.0,87049.0,0.12011]
[1766591582848,0.06891928,87059.0,87049.0,0.12011]
[1766591583060,0.02480971,87059.0,87049.0,0.12011]
[1766591583290,0.01148672,87057.0,87049.0,0.12011]
[1766591583500,0.068922,87055.0,87049.0,0.12011]
[1766591583730,0.02480971,87055.0,87049.0,0.12011]
[1766591583943,0.03629643,87057.0,87049.0,0.12011]
[1766591584167,0.05743466,87056.0,87049.0,0.12011]
[1766591585041,0.06892151,87056.0,87049.0,0.12011]
[1766591585238,0.09373122,87056.0,87049.0,0.12011]
[1766591586273,0.01148738,87052.0,87049.0,0.12011]
[1766591586483,0.01148751,87051.0,87042.0,0.01156]
[1766591586699,0.01148778,87049.0,87042.0,0.00010629]
[1766591587443,0.06892436,87052.0,87042.0,0.00010629]
[1766591587760,0.01148751,87051.0,87042.0,0.00010629]
[1766591588368,0.06892511,87051.0,87042.0,0.00010629]
[1766591588567,0.01148765,87050.0,87042.0,0.00010629]
[1766591588770,0.01148751,87051.0,87042.0,0.00010629]
[1766591588956,0.03631182,87053.0,87042.0,0.00010629]
[1766591589161,0.01148738,87052.0,87042.0,0.00010629]
[1766591589352,0.01148765,87050.0,87042.0,0.00010629]
[1766591589995,0.01148738,87052.0,87042.0,0.00010629]
[1766591590195,0.01148751,87051.0,87042.0,0.00010629]
[1766591590618,0.01148831,87045.0,87042.0,0.00010629]
[1766591590814,0.05744081,87047.0,87041.0,0.01156]
[1766591591011,0.06893125,87044.0,87041.0,0.01156]
[1766591591430,0.01148817,87046.0,87041.0,0.01156]
[1766591591635,0.06892993,87045.0,87041.0,0.01156]
[1766591592064,0.01148844,87044.0,87041.0,0.01156]
[1766591592800,0.01148897,87040.0,87032.0,0.04428991]
[1766591593062,0.00114899,87042.0,87032.0,0.05584991]
[1766591593271,0.0114891,87039.0,87032.0,0.01156]
[1766591593621,0.01148897,87040.0,87032.0,0.01156]
[1766591593966,0.06893791,87035.0,87026.0,0.01156]
[1766591594109,0.01148963,87035.0,87026.0,0.01156]
[1766591594320,0.01148976,87034.0,87026.0,0.01156]
[1766591594526,0.06893752,87036.0,87026.0,0.01156]
[1766591594729,0.01148949,87036.0,87026.0,0.01156]
[1766591594942,0.01148963,87035.0,87026.0,0.01156]
[1766591595769,0.05744624,87038.0,87026.0,0.01156]
[1766591595990,0.01148936,87037.0,87026.0,0.01156]
[1766591596193,0.01148963,87035.0,87026.0,0.01156]
[1766591596399,0.01148976,87034.0,87026.0,0.01156]
[1766591596620,0.01148949,87036.0,87026.0,0.01156]
[1766591596621,0.01156,87037.0,87026.0,0.01156]
[1766591596898,0.01156,87037.0,87029.0,0.01149042]
[1766591597106,0.01156,87037.0,87030.0,0.01149029]
[1766591597466,0.01156,87037.0,87028.0,0.06894317]
[1766591598044,0.01156,87037.0,87028.0,0.01149055]
[1766591598472,0.07008722,87036.0,87026.0,0.13167]
[1766591598671,0.01148963,87035.0,87026.0,0.01156]
[1766591599233,0.01156,87037.0,87035.0,0.000549]
[1766591599475,0.00011,87039.0,87032.0,0.13160002]
[1766591599647,0.01156,87038.0,87037.0,0.00055]
[1766591600330,0.01156,87038.0,87032.0,0.12011]
[1766591600966,0.01156,87037.0,87032.0,0.12011]
[1766591601136,0.011011,87037.0,87032.0,0.12011]
[1766591601341,0.01156,87038.0,87032.0,0.12011]
[1766591601542,0.24606853,87039.0,87038.0,0.00055]
[1766591601807,0.25762853,87039.0,87038.0,0.00055]
[1766591602017,0.26911763,87039.0,87034.0,0.12011]
[1766591602188,0.25762853,87039.0,87034.0,0.12011]
[1766591603436,0.25592565,87039.0,87034.0,0.13159976]
[1766591603643,0.01148685,87056.0,87039.0,0.1315991]
[1766591603839,0.01148738,87052.0,87042.0,0.12011]
[1766591604021,0.01148751,87051.0,87042.0,0.12011]
[1766591604221,0.06892453,87052.0,87042.0,0.12011]
[1766591604466,0.01148751,87051.0,87042.0,0.12011]
[1766591605410,0.06892283,87054.0,87042.0,0.12011]
[1766591605608,0.01156,87055.0,87042.0,0.18904168]
[1766591605766,0.05743693,87052.0,87042.0,0.12011]
[1766591605967,8.957e-05,87056.0,87046.0,0.01148817]
[1766591606173,8.957e-05,87056.0,87045.0,0.01148831]
[1766591606556,8.957e-05,87056.0,87045.0,0.05744125]
[1766591606738,8.957e-05,87056.0,87042.0,0.12011]
[1766591606739,0.01148699,87055.0,87042.0,0.12011]
[1766591606943,0.01148699,87055.0,87045.0,0.01148831]
[1766591607167,8.957e-05,87056.0,87044.0,0.01148844]
[1766591608035,0.01157642,87056.0,87046.0,0.01148817]
[1766591608168,0.01156,87055.0,87045.0,0.05744155]
[1766591608374,0.01156,87055.0,87046.0,0.01148817]
[1766591608558,0.01156,87055.0,87045.0,0.01148831]
[1766591608762,0.01156,87055.0,87046.0,0.01148817]
[1766591608974,0.02304699,87055.0,87045.0,0.01148831]
[1766591609175,8.957e-05,87056.0,87049.0,0.01148778]
[1766591609418,0.01164957,87056.0,87050.0,0.12332]
[1766591610003,0.01164957,87056.0,87050.0,0.13480765]
[1766591610203,8.957e-05,87056.0,87050.0,0.13480765]
[1766591611735,8.957e-05,87056.0,87050.0,0.12332]
[1766591612117,0.000549,87050.0,87046.0,0.13480817]
[1766591612345,8.957e-05,87056.0,87046.0,0.12332]
[1766591612507,0.01148725,87053.0,87042.0,0.0230487]
[1766591612911,0.05743619,87055.0,87042.0,0.08049214]
[1766591612912,0.06892318,87055.0,87042.0,0.08049214]
[1766591613281,0.06892318,87055.0,87043.0,0.13480857]
[1766591613483,0.01164957,87056.0,87049.0,0.01148778]
[1766591613939,0.01164957,87056.0,87048.0,0.06892695]
[1766591614792,0.01164957,87056.0,87048.0,0.01148791]
[1766591614995,8.957e-05,87056.0,87049.0,0.13480778]
[1766591615383,0.01157642,87056.0,87045.0,0.06892971]
[1766591615594,0.000549,87049.0,87044.0,0.06893064]
[1766591615798,0.000549,87049.0,87045.0,0.01148831]
[1766591616000,0.01156,87057.0,87046.0,0.01148817]
[1766591616156,0.048292,87058.0,87047.0,0.01148804]
[1766591616361,0.05977859,87058.0,87048.0,0.01148791]
[1766591616570,0.05977859,87058.0,87047.0,0.01159804]
[1766591616810,0.01148685,87056.0,87047.0,0.00011]
[1766591617018,0.05977859,87058.0,87047.0,0.00011]
[1766591617215,0.11721159,87058.0,87047.0,0.00011]
[1766591617601,0.01148672,87057.0,87047.0,0.00011]